bitfinex/quotes_ETHUSD_20250129
["timestamp","ask_amount","ask_price","bid_price","bid_amount"]
[1738127168281,0.7895,3127.7,3126.7,0.796]
[1738127168609,2.0,3131.3,3126.7,0.796]
[1738127168610,3.19674,3128.2,3127.4,3.19753]
[1738127168809,1.60393641,3128.4,3127.8,3.19711]
[1738127169116,0.8328,3128.7,3128.0,3.1969]
[1738127169318,4.02884,3128.9,3128.1,3.95462]
[1738127169480,3.19585,3129.1,3128.2,0.395462]
[1738127169678,3.19585,3129.1,3128.3,3.98505439]
[1738127170104,3.19591,3129.0,3128.4,0.05963693]
[1738127170576,4.01692,3128.5,3128.4,0.05963693]
[1738127170776,3.1966,3128.4,3127.5,0.319753]
[1738127171035,3.19656,3128.4,3127.3,3.22957033]
[1738127171180,3.19656,3128.4,3126.8,3.46608]
[1738127171181,3.19663,3128.3,3127.6,3.25412761]
[1738127171382,0.8205,3128.8,3127.7,3.19721]
[1738127171647,3.19637,3128.6,3127.7,3.25337147]
[1738127171953,3.0,3128.7,3127.8,0.03196836]
[1738127172119,4.01663,3128.8,3128.0,3.19692]
[1738127172319,3.19613,3128.8,3128.1,0.05632214]
[1738127172514,3.1959,3129.0,3128.1,0.05632214]
[1738127172775,0.8205,3129.1,3128.3,0.7961]
[1738127173074,3.0,3129.1,3128.3,4.02466266]
[1738127173232,3.0,3129.1,3128.4,3.65528841]
[1738127173973,0.8205,3129.4,3128.4,0.45878841]
[1738127174131,4.01603,3129.4,3128.6,3.19631]
[1738127174337,4.01603,3129.4,3128.7,0.05611461]
[1738127174556,4.01603,3129.4,3128.8,0.751]
[1738127174731,3.0,3129.3,3128.8,1.15134246]
[1738127174933,3.1956,3129.3,3128.8,1.15134246]
[1738127175175,3.1956,3129.3,3128.9,0.05611461]
[1738127176070,3.8205,3129.4,3128.9,0.05611461]
[1738127176233,3.0,3129.4,3128.9,0.05611461]
[1738127176629,3.19572,3129.2,3128.9,0.05611461]
[1738127178222,6.19552,3129.4,3128.9,0.05611461]
[1738127178888,6.19552,3129.4,3128.9,0.45644707]
[1738127178889,3.19552,3129.4,3128.9,0.45644707]
[1738127179219,3.19529,3129.6,3128.9,0.45644707]
[1738127179745,3.19529,3129.6,3128.9,0.48840408]
[1738127179926,3.19544,3129.5,3128.9,0.45644707]
[1738127180128,3.19544,3129.5,3128.9,0.05611461]
[1738127182283,3.0,3129.6,3128.9,0.05611461]
[1738127182428,3.19574,3129.2,3128.9,0.05611461]
[1738127184527,3.19552,3129.4,3128.9,0.05611461]
[1738127184867,3.1954,3129.5,3128.9,0.05611461]
[1738127185067,3.1952,3129.7,3129.1,3.19577]
[1738127185366,3.0,3129.6,3129.2,0.7748]
[1738127185881,3.98467,3130.0,3129.3,0.0550434]
[1738127186092,3.19508,3129.9,3129.3,0.0550434]
[1738127186232,3.1953,3129.6,3129.3,0.0550434]
[1738127186427,3.1953,3129.6,3129.2,0.7748]
[1738127186667,3.0,3129.7,3129.4,0.05492294]
[1738127186878,3.0,3129.7,3129.2,3.9705]
[1738127187077,3.0,3129.7,3129.5,0.05489617]
[1738127187377,3.0,3129.7,3129.2,3.9705]
[1738127187975,3.1949,3130.0,3129.3,0.05488948]
[1738127188128,3.1949,3130.0,3129.3,3.25039948]
[1738127188334,3.0,3129.9,3129.3,3.25039948]
[1738127188766,3.19501,3129.9,3129.3,3.25039948]
[1738127189146,3.19511,3129.8,3129.3,0.05488948]
[1738127189346,3.19511,3129.8,3129.2,0.7748]
[1738127189735,3.19511,3129.8,3129.3,0.05488948]
[1738127189968,3.19511,3129.8,3129.2,0.7748]
[1738127190268,3.19511,3129.8,3129.3,0.05488948]
[1738127190577,3.19511,3129.8,3129.4,0.05488948]
[1738127190787,3.19511,3129.8,3129.2,0.7748]
[1738127190954,3.19511,3129.8,3129.5,0.05488948]
[1738127191155,3.19511,3129.8,3129.2,0.7748]
[1738127191469,3.195,3129.9,3129.3,3.25048948]
[1738127192185,3.195,3129.9,3129.4,0.7507]
[1738127192669,3.195,3129.9,3129.5,0.05488948]
[1738127193539,3.0,3130.3,3129.5,0.05488948]
[1738127193540,3.19529,3129.6,3129.5,0.05488948]
[1738127193739,3.83433,3129.6,3129.5,0.05488948]
[1738127194140,3.1955,3129.4,3129.1,0.7742]
[1738127194538,3.19566,3129.3,3129.1,0.7742]
[1738127195049,3.19577,3129.2,3128.7,0.7742]
[1738127199074,3.19581,3129.1,3128.7,0.7742]
[1738127199890,3.19603,3128.9,3128.4,1.41430492]
[1738127200055,3.19612,3128.8,3128.4,1.41430492]
[1738127200755,3.19603,3128.9,3128.4,0.7742]
[1738127203281,3.19611,3128.8,3128.4,0.7742]
[1738127204678,0.751,3128.9,3128.4,0.7742]
[1738127204880,3.19642,3128.5,3128.0,0.7742]
[1738127205243,3.19642,3128.5,3128.1,0.05360511]
[1738127205683,3.19642,3128.5,3128.0,0.7742]
[1738127205848,3.19658,3128.4,3128.2,0.05360511]
[1738127206180,3.19658,3128.4,3128.0,0.7742]
[1738127206181,3.19658,3128.4,3128.3,0.05360511]
[1738127206386,3.19658,3128.4,3128.1,0.29908727]
[1738127206572,3.19658,3128.4,3128.2,0.05360511]
[1738127207788,3.19647,3128.5,3128.2,0.05360511]
[1738127208491,3.19647,3128.5,3128.0,0.7742]
[1738127209086,3.19647,3128.5,3128.1,0.05360511]
[1738127209382,3.19647,3128.5,3128.0,0.7742]
[1738127209683,3.19647,3128.5,3128.1,0.05360511]
[1738127209989,3.19647,3128.5,3128.0,0.7742]
[1738127210287,3.19647,3128.5,3128.1,0.05360511]
[1738127210457,3.19626,3128.7,3128.1,0.05360511]
[1738127210663,3.94706,3128.9,3128.2,6.39333]
[1738127210858,3.94706,3128.9,3128.3,0.7529]
[1738127211062,3.94706,3128.9,3128.3,0.80673253]
[1738127211400,7.14316,3128.9,3128.3,0.80673253]
[1738127211606,9.35028,3129.2,3128.4,3.19651]
[1738127211902,3.19587,3129.1,3128.5,3.94931]
[1738127212110,5.37,3129.2,3128.7,3.1962]
[1738127212404,5.37,3129.2,3128.8,3.19609]
[1738127212702,5.37,3129.2,3128.9,0.80673253]
[1738127216148,0.7845,3129.6,3129.1,3.19574]
[1738127216352,0.7796,3129.8,3129.2,3.24882046]
[1738127216650,0.7796,3129.8,3129.3,0.803]
[1738127216983,3.19495,3130.0,3129.4,0.05319046]
[1738127217146,3.19495,3130.0,3129.4,3.24868046]
[1738127218160,3.19476,3130.2,3129.6,3.19529]
[1738127218362,3.19481,3130.1,3129.7,0.05307011]
[1738127218689,3.19481,3130.1,3129.4,3.19541]
[1738127218858,3.19481,3130.1,3129.8,0.05307011]
[1738127219060,3.19491,3130.0,3129.4,3.19541]
[1738127219288,3.19491,3130.0,3129.9,0.05307011]
[1738127219584,3.19491,3130.0,3129.4,3.19541]
[1738127219784,3.19517,3129.8,3129.5,0.05286954]
[1738127219985,3.834276,3129.7,3129.5,0.05286954]
[1738127220283,3.19526,3129.7,3129.6,0.05286954]
[1738127220471,0.8261,3130.2,3129.6,0.05286954]
[1738127220685,3.19464,3130.3,3129.7,4.00025]
[1738127220854,3.19464,3130.3,3129.7,4.05315297]
[1738127220855,3.1947,3130.2,3129.7,4.05315297]
[1738127221063,3.19496,3130.0,3129.7,0.85800297]
[1738127221485,3.19447,3130.4,3129.7,1.26334227]
[1738127221696,3.19447,3130.4,3129.7,4.05318297]
[1738127221893,6.19428,3130.6,3129.8,0.03194861]
[1738127222059,6.19428,3130.6,3130.0,3.19487]
[1738127222263,6.19428,3130.6,3130.1,0.7612]
[1738127222487,3.19428,3130.6,3130.1,0.81394254]
[1738127222687,3.19442,3130.5,3130.1,0.81394254]
[1738127223964,3.98359,3130.8,3130.1,4.00870254]
[1738127224332,3.19409,3130.8,3130.2,3.19459]
[1738127224857,3.19419,3130.7,3130.3,0.05274254]
[1738127225057,3.19393,3131.0,3130.4,3.19446]
[1738127225256,3.19393,3131.0,3130.5,0.7679]
[1738127225685,3.19393,3131.0,3130.6,0.05274254]
[1738127225856,6.38789,3131.0,3130.5,0.7679]
[1738127226187,6.38786,3131.0,3130.5,0.7679]
[1738127226495,3.19393,3131.0,3130.6,0.05274254]
[1738127226695,3.813323,3131.0,3130.6,0.05274254]
[1738127226891,3.19393,3131.0,3130.6,0.05274254]
[1738127227999,3.19399,3130.9,3130.5,0.7679]
[1738127228211,3.19407,3130.8,3130.6,0.05274254]
[1738127228799,3.19376,3131.1,3130.6,0.05274254]
[1738127228999,3.19402,3130.9,3130.7,0.40149525]
[1738127229204,3.19402,3130.9,3130.5,0.7679]
[1738127229402,3.19402,3130.9,3130.6,0.05274254]
[1738127234907,3.19376,3131.1,3130.6,0.05274254]
[1738127236010,3.19359,3131.3,3130.6,0.08468256]
[1738127236197,3.0,3131.6,3131.0,0.8083]
[1738127236198,3.19326,3131.6,3131.0,0.8083]
[1738127236397,3.19326,3131.6,3131.1,3.64508289]
[1738127236597,3.19326,3131.6,3131.1,3.24486189]
[1738127238085,3.19337,3131.5,3131.1,0.05111189]
[1738127239689,3.1932,3131.7,3131.1,3.24485189]
[1738127240215,6.38644,3131.7,3131.1,3.24485189]
[1738127240511,3.19327,3131.6,3131.1,3.24485189]
[1738127240716,3.19327,3131.6,3131.1,3.9727485]
[1738127241616,3.1932,3131.7,3131.1,3.9727485]
[1738127242211,3.19338,3131.5,3131.1,0.7790085]
[1738127243822,3.19338,3131.5,3131.1,0.05111189]
[1738127244117,3.19366,3131.2,3131.1,0.05111189]
[1738127244298,3.19381,3131.1,3130.8,0.7981]
[1738127244697,3.19363,3131.3,3130.8,0.7981]
[1738127245887,3.19372,3131.2,3130.8,0.7981]
[1738127246483,3.19387,3131.0,3130.8,0.7981]
[1738127246688,6.38783,3131.0,3130.8,0.7981]
[1738127247019,3.19387,3131.0,3130.7,5.38]
[1738127250522,3.19387,3131.0,3130.8,0.05037721]
[1738127250725,3.95987,3131.0,3130.8,0.05037721]
[1738127250927,3.19396,3130.9,3130.8,0.05037721]
[1738127251230,1.161987,3131.0,3130.4,0.8104]
[1738127251438,3.19407,3130.8,3130.5,0.05037721]
[1738127252614,3.95991,3131.0,3130.5,3.24474721]
[1738127252615,3.19391,3131.0,3130.5,3.24474721]
[1738127253089,3.19391,3131.0,3130.5,0.05037721]
[1738127253293,6.38787,3131.0,3130.5,0.05037721]
[1738127253494,3.19391,3131.0,3130.5,0.05037721]
[1738127256492,3.19423,3130.7,3130.5,0.05037721]
[1738127257532,3.19397,3130.9,3130.5,0.05037721]
[1738127258726,3.1941,3130.8,3130.5,0.05037721]
[1738127259510,3.19397,3130.9,3130.5,0.05037721]
[1738127260023,3.19408,3130.8,3130.5,0.05037721]
[1738127264318,3.19419,3130.7,3130.5,0.05037721]
[1738127264920,3.19408,3130.8,3130.5,0.05037721]
[1738127266268,3.19418,3130.7,3130.5,0.05037721]
[1738127266430,3.19408,3130.8,3130.5,0.05037721]
[1738127266935,6.38823,3130.8,3130.5,0.05037721]
[1738127267513,3.19408,3130.8,3130.5,0.05037721]
[1738127269141,3.19391,3131.0,3130.5,0.05037721]
[1738127269335,3.19391,3131.0,3130.6,0.7901]
[1738127269645,3.19349,3131.4,3130.8,3.194]
[1738127269837,3.19349,3131.4,3131.0,0.7901]
[1738127270310,3.19349,3131.4,3131.1,0.05076458]
[1738127273141,6.38659,3131.6,3131.1,0.05076458]
[1738127273339,6.3866,3131.6,3131.1,0.05076458]
[1738127273526,3.19339,3131.5,3131.1,0.48617604]
[1738127274658,6.3866,3131.6,3131.1,0.48617604]
[1738127274822,3.19326,3131.6,3131.1,0.48617604]
[1738127275219,3.19337,3131.5,3131.1,0.48617604]
[1738127275820,3.19326,3131.6,3131.1,0.48617604]
[1738127276052,6.38659,3131.6,3131.1,0.48617604]
[1738127276354,3.19337,3131.5,3131.1,0.48617604]
[1738127276832,3.19348,3131.4,3131.1,0.05076458]
[1738127280158,3.19326,3131.6,3131.1,0.05076458]
[1738127280454,3.19326,3131.6,3131.2,0.755]
[1738127280658,3.19307,3131.8,3131.2,0.78693442]
[1738127280863,3.19307,3131.8,3131.4,0.755]
[1738127281024,3.19307,3131.8,3131.4,1.1549024]
[1738127281425,3.19319,3131.7,3131.5,0.05048404]
[1738127282362,3.19307,3131.8,3131.5,0.05048404]
[1738127282957,3.19291,3132.0,3131.5,0.05048404]
[1738127283140,3.19287,3132.0,3131.5,0.05048404]
[1738127283457,3.19287,3132.0,3131.7,0.7602]
[1738127283873,3.19287,3132.0,3131.8,0.05024366]
[1738127284265,3.19287,3132.0,3131.7,0.7602]
[1738127284757,3.19287,3132.0,3131.8,0.05024366]
[1738127284957,3.19287,3132.0,3131.7,0.7602]
[1738127285162,3.19287,3132.0,3131.9,0.05024366]
[1738127285333,3.19287,3132.0,3131.7,0.7602]
[1738127285532,3.19287,3132.0,3131.9,0.05024366]
[1738127285837,3.19287,3132.0,3131.7,0.7602]
[1738127286043,3.19287,3132.0,3131.9,0.05024366]
[1738127286238,3.19287,3132.0,3131.7,0.7602]
[1738127286459,3.19287,3132.0,3131.9,0.04994986]
[1738127286665,3.19287,3132.0,3131.7,0.7602]
[1738127286827,3.19287,3132.0,3131.9,0.04994986]
[1738127287359,3.19287,3132.0,3131.7,0.7602]
[1738127287541,3.19287,3132.0,3131.9,0.04994986]
[1738127287854,3.19287,3132.0,3131.7,0.7602]
[1738127288056,3.19287,3132.0,3131.9,0.04994986]
[1738127288261,3.19287,3132.0,3131.7,0.7602]
[1738127288459,3.19287,3132.0,3131.7,1.155552]
[1738127288664,3.19287,3132.0,3131.8,0.04994986]
[1738127289065,3.19287,3132.0,3131.7,1.155552]
[1738127289267,3.19287,3132.0,3131.9,0.04994986]
[1738127289432,3.19287,3132.0,3131.7,1.155552]
[1738127289633,3.19287,3132.0,3131.9,0.04994986]
[1738127289864,3.19287,3132.0,3131.7,1.155552]
[1738127290061,3.18552681,3132.0,3131.9,0.04994986]
[1738127290270,3.18552681,3132.0,3131.7,1.155552]
[1738127290445,3.18552681,3132.0,3131.9,0.04994986]
[1738127290943,3.18552681,3132.0,3131.7,1.155552]
[1738127291149,3.18552681,3132.0,3131.9,0.04994986]
[1738127291467,3.18552681,3132.0,3131.7,1.155552]
[1738127292136,3.18552681,3132.0,3131.8,0.04994986]
[1738127292330,3.18552681,3132.0,3131.7,1.155552]
[1738127292546,3.19271,3132.2,3131.9,0.04994986]
[1738127292747,3.19271,3132.2,3131.7,1.155552]
[1738127292932,3.19271,3132.2,3132.0,0.04994986]
[1738127293133,3.19271,3132.2,3131.8,0.43807121]
[1738127293468,3.19271,3132.2,3132.1,0.04994986]
[1738127293666,3.19271,3132.2,3131.8,0.43807121]
[1738127293861,3.19271,3132.2,3132.1,0.0496361]
[1738127294066,3.19275,3132.1,3131.8,0.43807121]
[1738127294268,3.19275,3132.1,3131.7,1.155552]
[1738127295434,3.19275,3132.1,3131.8,0.0496361]
[1738127295767,3.19275,3132.1,3131.7,1.155552]
[1738127295934,3.19275,3132.1,3131.8,0.0496361]
[1738127296466,6.38557,3132.1,3131.7,1.155552]
[1738127296662,3.19275,3132.1,3131.9,0.0496361]
[1738127296870,3.19275,3132.1,3131.7,1.155552]
[1738127297064,3.19275,3132.1,3132.0,0.0496361]
[1738127297277,3.19275,3132.1,3131.7,1.155552]
[1738127297571,3.19275,3132.1,3132.0,0.0496361]
[1738127297738,3.19275,3132.1,3131.7,0.7602]
[1738127298067,3.19275,3132.1,3131.8,0.0496361]
[1738127298266,3.19284,3132.0,3131.8,0.0496361]
[1738127298454,3.19254,3132.3,3131.4,0.8181]
[1738127298662,3.19284,3132.0,3131.9,0.0496361]
[1738127298857,3.19321,3131.7,3131.4,0.8181]
[1738127299244,3.19321,3131.7,3131.5,0.04932238]
[1738127301970,3.19321,3131.7,3131.2,0.8068]
[1738127302274,3.19334,3131.6,3131.3,0.04932238]
[1738127303444,3.19321,3131.7,3131.3,0.04932238]
[1738127303639,3.19326,3131.6,3131.3,0.04932238]
[1738127304879,3.19321,3131.7,3131.3,0.04932238]
[1738127305943,6.38646,3131.7,3131.3,0.04932238]
[1738127306367,3.19321,3131.7,3131.3,0.04932238]
[1738127306543,3.19321,3131.7,3131.3,0.77367462]
[1738127312284,0.802,3131.8,3131.3,0.77367462]
[1738127312585,3.19306,3131.8,3131.3,3.96722462]
[1738127313782,3.19297,3131.9,3131.4,3.1934]
[1738127313985,0.7926,3132.5,3132.1,3.19268]
[1738127314313,3.19156,3133.3,3132.2,4.02678931]
[1738127314314,0.7926,3132.8,3132.2,4.02678931]
[1738127314584,0.7926,3132.8,3132.3,3.19252]
[1738127314902,3.98445,3133.0,3132.5,3.19232]
[1738127315066,0.7926,3133.0,3132.5,3.19232]
[1738127315403,3.19201,3132.9,3132.6,0.04904213]
[1738127315608,3.19201,3132.9,3132.3,3.19251]
[1738127315768,3.19201,3132.9,3132.4,0.04904213]
[1738127316371,3.98444,3133.0,3132.4,3.24141213]
[1738127316776,3.19176,3133.1,3132.6,0.811]
[1738127317206,3.19176,3133.1,3132.7,0.04904213]
[1738127320376,0.005,3133.4,3133.0,3.19182]
[1738127320573,0.005,3133.4,3133.2,0.7719]
[1738127320769,0.005,3133.4,3133.3,0.04880864]
[1738127322372,0.005,3133.4,3133.3,3.24032864]
[1738127322980,0.005,3133.4,3133.3,4.01222864]
[1738127324108,0.005,3133.4,3133.3,0.82070864]
[1738127324293,3.19642,3133.4,3133.3,0.04880864]
[1738127324692,3.19156,3133.3,3132.7,0.7719]
[1738127324866,3.19156,3133.3,3132.8,0.396412]
[1738127325072,3.1917,3133.2,3132.8,0.04694759]
[1738127325274,3.19193,3132.9,3132.8,0.04694759]
[1738127325584,3.19193,3132.9,3132.4,0.7719]
[1738127325788,3.19193,3132.9,3132.5,0.04694759]
[1738127326312,0.005,3133.4,3133.1,3.19164]
[1738127326473,0.005,3133.4,3133.2,4.31457888]
[1738127326808,0.005,3133.4,3133.3,0.04694759]
[1738127327012,0.005,3133.4,3133.3,3.23846759]
[1738127327214,0.005,3133.4,3133.3,5.7603513]
[1738127327383,0.005,3133.4,3133.3,3.23846759]
[1738127327710,0.005,3133.4,3133.3,3.99058075]
[1738127328408,0.005,3133.4,3133.3,11.02736195]
[1738127328570,0.005,3133.4,3133.3,10.9954522]
[1738127328908,0.005,3133.4,3133.3,8.50548075]
[1738127330321,0.005,3133.4,3133.3,7.95548075]
[1738127330479,0.005,3133.4,3133.3,4.76396075]
[1738127330694,0.005,3133.4,3133.3,0.04694759]
[1738127331020,0.005,3133.4,3133.1,0.7719]
[1738127331224,0.005,3133.4,3133.2,0.04694759]
[1738127331585,0.005,3133.4,3133.2,3.23853759]
[1738127334224,0.005,3133.4,3133.2,0.04694759]
[1738127338502,0.005,3133.4,3133.2,0.44800135]
[1738127339001,0.005,3133.4,3133.2,0.04694759]
[1738127339206,0.005,3133.4,3132.9,3.1919]
[1738127339425,0.005,3133.4,3133.0,0.04675426]
[1738127340796,3.19642,3133.4,3133.0,0.04675426]
[1738127341119,3.19642,3133.4,3132.8,0.821]
[1738127341320,3.19162,3133.2,3133.1,0.04675426]
[1738127341520,3.19162,3133.2,3132.6,0.7877]
[1738127341737,3.19162,3133.2,3133.1,0.04675426]
[1738127341941,3.19642,3133.4,3132.7,3.19213]
[1738127342231,3.19642,3133.4,3132.8,3.23877426]
[1738127343317,3.19153,3133.3,3132.8,0.04675426]
[1738127343744,3.19153,3133.3,3132.7,3.19213]
[1738127343937,3.19153,3133.3,3132.9,0.04675426]
[1738127344135,3.19153,3133.3,3132.7,3.91253473]
[1738127344337,3.19166,3133.2,3133.0,0.04675426]
[1738127344530,3.19153,3133.3,3132.6,3.97992]
[1738127344730,3.19153,3133.3,3133.1,0.04675426]
[1738127345134,3.19153,3133.3,3132.7,3.22397733]
[1738127345311,3.19153,3133.3,3133.2,0.04672759]
[1738127345531,3.19153,3133.3,3132.7,3.19206]
[1738127345713,3.19153,3133.3,3133.2,0.04672759]
[1738127346242,3.19153,3133.3,3132.4,3.19241]
[1738127346243,3.19182,3133.0,3132.4,3.19241]
[1738127346414,3.19182,3133.0,3132.5,0.04696096]
[1738127348547,3.19193,3132.9,3132.5,0.04696096]
[1738127349245,0.8308,3133.3,3132.3,0.8218]
[1738127349246,3.96924,3132.8,3132.3,0.8218]
[1738127349487,3.96924,3132.8,3132.4,0.04736101]
[1738127349815,0.7772,3132.8,3132.3,3.19254]
[1738127350019,0.7772,3132.8,3132.4,3.23975101]
[1738127350476,3.98436,3133.0,3132.4,3.88617927]
[1738127350623,3.98436,3133.0,3132.4,3.23975101]
[1738127351334,3.19193,3132.9,3132.4,3.23975101]
[1738127351670,0.7925,3133.0,3132.4,3.23975101]
[1738127351816,3.98433,3133.0,3132.4,3.23975101]
[1738127352570,3.98433,3133.0,3132.4,0.04736101]
[1738127352765,3.19202,3132.9,3132.4,0.04736101]
[1738127353068,3.19208,3132.8,3132.5,0.04736101]
[1738127353517,3.1923,3132.6,3132.1,0.7864]
[1738127353718,0.8114,3132.5,3132.1,0.7864]
[1738127353919,0.8114,3132.5,3132.1,3.97911]
[1738127354445,0.8114,3132.5,3132.1,0.7864]
[1738127355148,3.19226,3132.6,3132.1,3.97913]
[1738127355468,3.19226,3132.6,3132.2,0.04736101]
[1738127355861,3.19226,3132.6,3132.1,3.97913]
[1738127356020,3.19226,3132.6,3132.3,0.04736101]
[1738127356320,3.19226,3132.6,3132.1,0.7864]
[1738127356525,3.19226,3132.6,3132.4,0.04736101]
[1738127356721,3.19226,3132.6,3132.1,0.7864]
[1738127356922,3.19226,3132.6,3131.9,3.1929]
[1738127356923,3.19226,3132.6,3132.5,0.04736101]
[1738127357132,3.19226,3132.6,3132.1,3.97834]
[1738127357552,3.19226,3132.6,3132.2,0.04804793]
[1738127357848,3.19226,3132.6,3132.1,3.97834]
[1738127358059,6.19127,3133.6,3132.1,3.97834]
[1738127358060,4.02382,3132.9,3132.3,3.19247]
[1738127358543,4.02382,3132.9,3132.4,0.04804793]
[1738127358846,3.1919,3133.0,3132.5,0.7856]
[1738127359145,6.19174,3133.1,3132.5,3.97787]
[1738127359446,0.8318,3133.2,3132.6,0.04804793]
[1738127359651,3.19156,3133.3,3132.7,3.59465179]
[1738127359946,3.19156,3133.3,3132.8,0.04804793]
[1738127361166,3.19164,3133.2,3132.8,0.04804793]
[1738127361666,4.68050835,3133.4,3132.8,0.04804793]
[1738127361970,4.02829,3133.4,3132.9,0.8275]
[1738127362117,4.02829,3133.4,3132.9,0.87539452]
[1738127362448,3.19649,3133.4,3132.9,0.87539452]
[1738127362853,3.19154,3133.3,3132.9,0.87539452]
[1738127363851,3.19162,3133.2,3132.9,0.87539452]
[1738127364053,3.830431,3133.2,3132.9,0.04789452]
[1738127364260,3.19182,3133.0,3132.6,0.8275]
[1738127364445,3.19193,3132.9,3132.7,0.04789452]
[1738127364647,3.19193,3132.9,3132.3,4.01995]
[1738127364846,3.19193,3132.9,3132.4,0.04780782]
[1738127366641,3.97331,3133.1,3132.4,3.24021782]
[1738127367362,3.97331,3133.1,3132.5,3.19231]
[1738127367729,3.97331,3133.1,3132.6,0.04794121]
[1738127368129,3.97331,3133.1,3132.5,3.19231]
[1738127368437,3.97331,3133.1,3132.5,3.9856627]
[1738127368638,3.97331,3133.1,3132.6,0.04779446]
[1738127368837,3.97331,3133.1,3132.5,3.9856627]
[1738127369038,3.97331,3133.1,3132.6,0.04779446]
[1738127369039,3.19183,3133.0,3132.6,0.04779446]
[1738127369229,3.19183,3133.0,3132.5,3.9856627]
[1738127369431,3.19183,3133.0,3132.6,0.04779446]
[1738127369630,3.19183,3133.0,3132.5,3.9856627]
[1738127369963,3.19183,3133.0,3132.6,0.04774778]
[1738127370262,3.19183,3133.0,3132.5,3.9856827]
[1738127370462,3.19183,3133.0,3132.6,0.04774778]
[1738127370666,0.7815,3133.1,3132.5,3.9856827]
[1738127370959,0.7815,3133.1,3132.6,0.04774778]
[1738127371338,0.7815,3133.1,3132.5,3.9856827]
[1738127371541,3.19167,3133.2,3132.7,0.04774778]
[1738127371738,3.19642,3133.4,3132.7,4.00756]
[1738127371983,6.38792,3133.4,3132.8,0.04774778]
[1738127372281,3.19153,3133.3,3132.8,0.04774778]
[1738127374272,3.19153,3133.3,3132.8,0.81267058]
[1738127374446,3.19164,3133.2,3132.8,0.81267058]
[1738127374622,3.19185,3133.0,3132.8,0.04774778]
[1738127374822,3.19193,3132.9,3132.4,3.9815]
[1738127375039,3.19223,3132.6,3132.5,0.04682776]
[1738127375239,3.19223,3132.6,3132.0,0.7891]
[1738127375453,3.19239,3132.5,3132.1,0.44502476]
[1738127375648,3.19187,3133.0,3132.3,3.19252]
[1738127375865,3.19203,3132.8,3132.2,3.98174]
[1738127376163,3.19203,3132.8,3132.3,3.23935776]
[1738127376368,3.19203,3132.8,3132.3,0.04682776]
[1738127376536,3.19203,3132.8,3132.3,0.48950424]
[1738127376734,3.19203,3132.8,3132.3,0.44267648]
[1738127376933,3.19203,3132.8,3132.4,0.04682776]
[1738127377866,3.19213,3132.7,3132.4,0.04682776]
[1738127378033,3.19203,3132.8,3132.4,0.04682776]
[1738127378233,3.19203,3132.8,3132.4,0.49394518]
[1738127379365,3.19232,3132.6,3132.4,0.04682776]
[1738127379568,3.19233,3132.5,3132.4,0.04682776]
[1738127379736,3.19233,3132.5,3132.2,0.7891]
[1738127379937,3.19233,3132.5,3132.4,0.04682776]
[1738127380137,3.19233,3132.5,3132.3,0.04694782]
[1738127380354,3.19233,3132.5,3132.2,0.7891]
[1738127380554,3.19232,3132.6,3132.4,0.04694782]
[1738127380756,3.19232,3132.6,3132.2,0.7891]
[1738127381164,3.19232,3132.6,3132.3,0.04694782]
[1738127381445,3.19232,3132.6,3132.2,0.7891]
[1738127381646,3.19232,3132.6,3132.3,0.04694782]
[1738127381844,3.19232,3132.6,3132.2,0.7891]
[1738127381845,3.19244,3132.4,3132.2,0.7891]
[1738127382169,3.19244,3132.4,3132.3,0.0472413]
[1738127382571,3.19244,3132.4,3132.2,0.7891]
[1738127382775,3.19244,3132.4,3132.3,0.0472413]
[1738127382972,3.19232,3132.6,3132.3,0.0472413]
[1738127383164,3.19233,3132.5,3132.2,0.7891]
[1738127383360,3.19215,3132.7,3132.4,0.04725464]
[1738127383565,3.19215,3132.7,3132.2,0.7891]
[1738127383773,3.19215,3132.7,3132.5,0.04725464]
[1738127383948,3.19215,3132.7,3132.2,4.379915]
[1738127384149,3.19215,3132.7,3132.6,0.04729467]
[1738127384471,3.19196,3132.9,3132.7,0.7574]
[1738127384965,3.19196,3132.9,3132.8,0.04720128]
[1738127385367,3.19167,3133.2,3132.8,0.04720128]
[1738127385573,6.38339,3133.2,3132.8,0.04720128]
[1738127386348,3.19187,3133.0,3132.8,0.04720128]
[1738127387051,3.19193,3132.9,3132.4,4.02253]
[1738127387306,3.19193,3132.9,3132.5,0.0470612]
[1738127387946,3.96797,3133.0,3132.5,0.0470612]
[1738127388152,3.19187,3133.0,3132.5,3.64633432]
[1738127389288,3.95417,3133.2,3132.5,6.83857432]
[1738127389491,3.95417,3133.2,3132.6,0.7695]
[1738127389492,3.19167,3133.2,3132.6,0.7695]
[1738127389989,3.19178,3133.1,3132.7,0.04694113]
[1738127390556,3.19167,3133.2,3132.7,0.04694113]
[1738127390755,3.1919,3133.0,3132.7,0.04694113]
[1738127391691,3.19193,3132.9,3132.7,0.04694113]
[1738127392457,3.19203,3132.8,3132.7,0.04694113]
[1738127392695,3.19221,3132.7,3132.3,0.816]
[1738127393254,3.19221,3132.7,3132.3,1.21687]
[1738127393781,3.19203,3132.8,3132.3,1.21687]
[1738127400310,3.19203,3132.8,3132.4,0.04690111]
[1738127402281,0.7654,3132.9,3132.4,0.04690111]
[1738127402487,3.19233,3132.5,3132.4,0.04690111]
[1738127402689,3.19233,3132.5,3132.0,3.19279]
[1738127403013,3.19233,3132.5,3132.1,0.04718126]
[1738127404423,0.826,3132.6,3132.1,3.23990126]
[1738127404719,3.19227,3132.6,3132.1,3.23991126]
[1738127405501,4.0181,3132.8,3132.1,3.23991126]
[1738127405694,4.0181,3132.8,3132.2,0.8042]
[1738127405895,0.826,3133.1,3132.4,3.19234]
[1738127406221,3.19174,3133.1,3132.6,3.9964]
[1738127406619,3.19174,3133.1,3132.7,0.0455712]
[1738127407425,3.19184,3133.0,3132.7,0.0455712]
[1738127408124,3.19174,3133.1,3132.7,0.0455712]